[Event "FIDE World Rapid-ch Open 2018"]
[White "Potkin, Vladimir"]
[Black "Christiansen, Johan-Sebastian"]
[Site "St. Petersburg"]
[Round "2.59"]
[Annotator "ChessBase"]
[Result "1-0"]
[Date "2018.12.26"]
[WhiteElo "2597"]
[BlackElo "2555"]
[PlyCount "149"]
[TimeControl "900+10"]

1. c4 {[%emt 0:0:0]} e5 {[%emt 0:0:0]} 2. Nc3 {[%emt 0:0:0]} Nc6 {[%emt 0:0:0]
} 3. Nf3 {[%emt 0:0:0]} Nf6 {[%emt 0:0:3]} 4. g3 {[%emt 0:0:0]} d5 {[%emt 0:0:9]} 5. cxd5 {[%emt 0:0:0]} Nxd5 {[%emt 0:0:2]} 6. Bg2 {[%emt 0:0:0]} Bc5 {[%emt 0:0:2]} 7. 0-0 {[%emt 0:0:3]} 0-0 {[%emt 0:0:0]} 8. d3 {[%emt 0:0:2]} Re8 {[%emt 0:0:27]} 9. Qb3 {[%emt 0:0:16]} Nxc3 {[%emt 0:0:54]
} 10. bxc3 {[%emt 0:0:1]} h6 {[%emt 0:0:46]} 11. Nd2 {[%emt 0:0:0]} a5 {[%emt 0:1:36]} 12. Nc4 {[%emt 0:1:0]} Bf8 {[%emt 0:1:14]} 13. a4 {[%emt 0:0:25]} Qd7 {[%emt 0:0:8]} 14. Ba3 {[%emt 0:1:1]} Bxa3 {[%emt 0:0:5]
} 15. Rxa3 {[%emt 0:0:4]} b6 {[%emt 0:0:44]} 16. Rd1 {[%emt 0:0:0]} Bb7 {[%emt 0:0:4]} 17. e3 {[%emt 0:0:32]} Rad8 {[%emt 0:4:21]} 18. d4 {[%emt 0:0:20]} e4 {[%emt 0:2:20]} 19. Nd2 {[%emt 0:0:4]} Nb8 {[%emt 0:0:0]} 20. Raa1 {[%emt 0:1:31]} Qe7 {[%emt 0:0:10]} 21. Qc2 {[%emt 0:0:38]} Nd7 {[%emt 0:0:52]} 22. Rab1 {[%emt 0:0:36]} h5 {[%emt 0:0:1]} 23. c4 {[%emt 0:0:35]
} Nf6 {[%emt 0:0:49]} 24. c5 {[%emt 0:1:8]} Ba6 {[%emt 0:0:0]} 25. cxb6 {[%emt 0:0:32]} Bd3 {[%emt 0:0:1]} 26. Qxc7 {[%emt 0:0:3]} Bxb1 {[%emt 0:0:6]} 27. Qxe7 {[%emt 0:0:3]} Rxe7 {[%emt 0:0:1]} 28. Rxb1 {[%emt 0:0:2]} Nd5 {[%emt 0:0:53]} 29. Rb5 {[%emt 0:2:3]} Nc3 {[%emt 0:0:0]} 30. Rxa5 {[%emt 0:1:44]} Rb8 {[%emt 0:0:1]} 31. Ra6 {[%emt 0:0:4]} Nd5 {[%emt 0:0:42]} 32. Nc4 {[%emt 0:0:27]} Rc8 {[%emt 0:0:8]} 33. Bf1 Rb8 34. Ra5 {[%emt 0:2:44]} Nxb6 {[%emt 0:0:7]} 35. Rb5 {[%emt 0:0:1]} Nd7 {[%emt 0:0:0]
} 36. Rxh5 {[%emt 0:0:7]} Rb1 {[%emt 0:0:6]} 37. Kg2 {[%emt 0:0:8]
} Ra1 {[%emt 0:0:5]} 38. a5 {[%emt 0:0:1]} g6 {[%emt 0:0:1]
} 39. Rb5 {[%emt 0:0:2]} Nf6 {[%emt 0:0:6]} 40. Ne5 {[%emt 0:0:9]} Ra7 {[%emt 0:0:16]
} 41. a6 {[%emt 0:0:25]} Kg7 {[%emt 0:0:16]} 42. Rb3 {[%emt 0:0:0]} Ra2 {[%emt 0:0:6]} 43. Bc4 {[%emt 0:0:3]} Rc2 {[%emt 0:0:35]} 44. Rb4 {[%emt 0:0:50]} Rc7 {[%emt 0:0:24]} 45. Ra4 {[%emt 0:0:8]} Ng4 {[%emt 0:0:11]
} 46. a7 {[%emt 0:0:42]} Nxe3+ {[%emt 0:1:3]} 47. Kh3 {[%emt 0:0:1]
} Rxa7 {[%emt 0:0:13]} 48. Rxa7 {[%emt 0:0:1]} Nxc4 {[%emt 0:0:0]} 49. Rxf7+ {[%emt 0:0:8]} Kh6 {[%emt 0:0:18]} 50. Rc7 {[%emt 0:0:41]
} Na3 {[%emt 0:0:1]} 51. Rxc2 {[%emt 0:0:20]} Nxc2 {[%emt 0:0:1]} 52. d5 {[%emt 0:0:1]
} Kg5 {[%emt 0:0:1]} 53. d6 {[%emt 0:0:4]} Kf6 {[%emt 0:0:0]} 54. d7 {[%emt 0:0:17]} Ke7 {[%emt 0:0:1]} 55. Kg4 {[%emt 0:0:6]} e3 {[%emt 0:0:4]
} 56. fxe3 {[%emt 0:0:14]} Nxe3+ {[%emt 0:0:1]} 57. Kg5 {[%emt 0:0:6]
} Nf1 {[%emt 0:0:1]} 58. Nf3 {[%emt 0:0:17]} Kxd7 {[%emt 0:0:0]} 59. Kxg6 {[%emt 0:0:1]} Ke7 {[%emt 0:0:5]} 60. g4 {[%emt 0:0:4]} Kf8 {[%emt 0:0:3]} 61. h4 {[%emt 0:0:5]} Ne3 {[%emt 0:0:6]} 62. g5 {[%emt 0:0:0]} Nd5 {[%emt 0:0:2]} 63. Kh7 {[%emt 0:0:14]} Nf4 {[%emt 0:0:18]} 64. Ne5 {[%emt 0:0:17]} Nh5 {[%emt 0:0:3]} 65. Kg6 {[%emt 0:0:30]} Nf4+ {[%emt 0:0:2]
} 66. Kf5 {[%emt 0:0:5]} Nd5 {[%emt 0:0:3]} 67. h5 {[%emt 0:0:0]} Kg7 {[%emt 0:0:3]} 68. h6+ {[%emt 0:0:7]} Kh7 {[%emt 0:0:1]} 69. Nf7 {[%emt 0:0:16]} Ne7+ {[%emt 0:0:6]} 70. Kg4 {[%emt 0:0:3]} Nd5 {[%emt 0:0:21]
} 71. Ne5 {[%emt 0:0:7]} Nc7 {[%emt 0:1:0]} 72. Kh5 {[%emt 0:0:0]} Ne6 {[%emt 0:0:1]} 73. g6+ {[%emt 0:0:2]} Kg8 {[%emt 0:0:2]} 74. Kg4 {[%emt 0:0:11]} Nd4 {[%emt 0:0:58]} 75. h7+ {[%emt 0:0:10]} 1-0

[Event "FIDE World Rapid-ch Open 2018"]
[White "Abdusattorov, Nodirbek"]
[Black "Salgado Lopez, Ivan"]
[Site "St. Petersburg"]
[Round "2.60"]
[Annotator "ChessBase"]
[Result "1/2-1/2"]
[Date "2018.12.26"]
[WhiteElo "2546"]
[BlackElo "2629"]
[PlyCount "68"]
[TimeControl "900+10"]

1. e4 {[%emt 0:0:0]} c5 {[%emt 0:0:0]} 2. Nc3 {[%emt 0:0:0]} Nc6 {[%emt 0:0:0]
} 3. Bb5 {[%emt 0:0:0]} Nd4 {[%emt 0:0:0]} 4. Bc4 {[%emt 0:0:0]} a6 {[%emt 0:0:0]} 5. Nf3 {[%emt 0:0:0]} b5 {[%emt 0:0:21]} 6. Bd5 {[%emt 0:0:58]} Rb8 {[%emt 0:0:30]} 7. Nxd4 {[%emt 0:1:0]} cxd4 {[%emt 0:0:0]} 8. Ne2 {[%emt 0:0:9]} Nf6 {[%emt 0:0:27]} 9. Nxd4 {[%emt 0:0:29]} Qb6 {[%emt 0:0:20]} 10. Nf3 {[%emt 0:1:2]} Nxd5 {[%emt 0:0:6]} 11. exd5 {[%emt 0:0:2]
} Bb7 {[%emt 0:0:3]} 12. 0-0 {[%emt 0:0:38]} Bxd5 {[%emt 0:0:0]} 13. Re1 {[%emt 0:0:23]} e6 {[%emt 0:0:7]} 14. d4 {[%emt 0:0:23]} Be7 {[%emt 0:0:13]
} 15. Ne5 {[%emt 0:0:41]} h5 {[%emt 0:2:38]} 16. c3 {[%emt 0:0:0]} Qb7 {[%emt 0:0:24]} 17. f3 {[%emt 0:1:23]} g5 {[%emt 0:0:4]} 18. Nd3 {[%emt 0:1:4]} Rg8 {[%emt 0:0:18]} 19. Qe2 {[%emt 0:1:12]} g4 {[%emt 0:0:0]} 20. f4 {[%emt 0:0:52]} f5 {[%emt 0:0:59]} 21. a4 {[%emt 0:0:32]} h4 {[%emt 0:0:15]} 22. axb5 {[%emt 0:0:2]} axb5 {[%emt 0:0:4]} 23. Ne5 {[%emt 0:0:44]
} h3 {[%emt 0:0:42]} 24. g3 {[%emt 0:0:4]} d6 {[%emt 0:1:46]} 25. Nd3 {[%emt 0:0:2]} Bc4 {[%emt 0:0:11]} 26. Rd1 {[%emt 0:0:31]} Kf7 {[%emt 0:0:9]
} 27. Rb1 {[%emt 0:1:1]} b4 {[%emt 0:0:52]} 28. b3 {[%emt 0:0:0]} Bd5 {[%emt 0:0:13]} 29. Re1 {[%emt 0:1:31]} bxc3 {[%emt 0:0:11]} 30. Ba3 {[%emt 0:0:17]} Rgc8 {[%emt 0:0:17]} 31. Nb4 {[%emt 0:0:19]} Be4 {[%emt 0:0:7]
} 32. Nc2 {[%emt 0:0:52]} Ra8 {[%emt 0:0:24]} 33. d5 {[%emt 0:0:0]} exd5 {[%emt 0:0:40]} 34. Rbd1 {[%emt 0:0:45]} Qxb3 {[%emt 0:0:17]} 1/2-1/2

[Event "FIDE World Rapid-ch Open 2018"]
[White "Borisenko, Viacheslav"]
[Black "Iljiushenok, Ilia"]
[Site "St. Petersburg"]
[Round "2.62"]
[Annotator "ChessBase"]
[Result "0-1"]
[Date "2018.12.26"]
[WhiteElo "2289"]
[BlackElo "2533"]
[PlyCount "138"]
[TimeControl "900+10"]

1. e4 {[%emt 0:0:0]} c5 {[%emt 0:0:0]} 2. Nf3 {[%emt 0:0:0]} e6 {[%emt 0:0:0]} 3. c3 {[%emt 0:0:0]} Nf6 {[%emt 0:0:0]} 4. d3 {[%emt 0:0:0]} Nc6 {[%emt 0:0:16]} 5. Be2 {[%emt 0:0:0]} Be7 {[%emt 0:0:15]} 6. 0-0 {[%emt 0:0:0]} 0-0 {[%emt 0:0:4]} 7. h3 {[%emt 0:0:18]} d5 {[%emt 0:0:8]} 8. e5 {[%emt 0:0:2]
} Nd7 {[%emt 0:0:31]} 9. d4 {[%emt 0:0:2]} f6 {[%emt 0:0:40]} 10. exf6 {[%emt 0:0:24]} Bxf6 {[%emt 0:0:4]} 11. Be3 {[%emt 0:1:7]} b6 {[%emt 0:0:38]
} 12. a4 {[%emt 0:1:17]} e5 {[%emt 0:1:0]} 13. Qb3 {[%emt 0:0:0]} Ne7 {[%emt 0:1:23]} 14. dxe5 {[%emt 0:1:45]} Nxe5 {[%emt 0:0:3]} 15. Nbd2 {[%emt 0:0:24]} Bf5 {[%emt 0:5:44]} 16. Rfd1 {[%emt 0:1:10]} N5c6 {[%emt 0:0:18]
} 17. Nf1 {[%emt 0:0:33]} h6 {[%emt 0:0:20]} 18. Bb5 {[%emt 0:0:0]} Na5 {[%emt 0:2:25]} 19. Qa2 {[%emt 0:0:31]} c4 {[%emt 0:0:6]} 20. Ba6 {[%emt 0:0:42]} Nb3 {[%emt 0:1:59]} 21. Bxc4 {[%emt 0:0:23]} Nxa1 {[%emt 0:0:1]
} 22. Qxa1 {[%emt 0:1:11]} Bc2 {[%emt 0:0:4]} 23. Rd2 {[%emt 0:0:22]
} Be4 {[%emt 0:0:1]} 24. Be2 {[%emt 0:0:17]} Nf5 {[%emt 0:0:0]} 25. Qd1 {[%emt 0:0:24]} Qe7 {[%emt 0:0:45]} 26. Bf4 {[%emt 0:3:49]} Rad8 {[%emt 0:0:6]} 27. Ne3 {[%emt 0:0:10]} Nxe3 {[%emt 0:0:8]} 28. Bxe3 {[%emt 0:0:2]
} Kh8 {[%emt 0:0:25]} 29. Nd4 {[%emt 0:0:28]} Bxd4 {[%emt 0:0:0]} 30. Rxd4 {[%emt 0:0:3]} Rd6 {[%emt 0:0:19]} 31. Bd3 {[%emt 0:0:26]} Rg6 {[%emt 0:0:16]} 32. Bxe4 {[%emt 0:0:1]} dxe4 {[%emt 0:0:0]} 33. Rd7 {[%emt 0:0:26]
} Qe6 {[%emt 0:0:4]} 34. Kf1 {[%emt 0:0:3]} a6 {[%emt 0:0:0]} 35. Qd4 {[%emt 0:0:11]} Kh7 {[%emt 0:0:9]} 36. c4 {[%emt 0:0:18]} Rc8 {[%emt 0:0:13]} 37. b3 {[%emt 0:0:1]} b5 {[%emt 0:0:9]} 38. axb5 {[%emt 0:0:0]} axb5 {[%emt 0:0:1]} 39. cxb5 {[%emt 0:0:22]} Qxb3 {[%emt 0:0:2]} 40. b6 {[%emt 0:0:3]} Qb1+ {[%emt 0:0:19]} 41. Qd1 {[%emt 0:0:4]} Rxb6 {[%emt 0:0:8]
} 42. Bxb6 {[%emt 0:0:6]} Rc1 {[%emt 0:0:1]} 43. Qxc1 {[%emt 0:0:23]
} Qxc1+ {[%emt 0:0:2]} 44. Ke2 {[%emt 0:0:0]} Qb2+ {[%emt 0:0:0]} 45. Ke3 {[%emt 0:0:16]} Qxb6+ {[%emt 0:0:2]} 46. Rd4 {[%emt 0:0:1]
} Kg6 {[%emt 0:0:51]} 47. Kxe4 {[%emt 0:0:6]} Qc6+ {[%emt 0:0:7]} 48. Ke3 {[%emt 0:0:14]} Qc3+ {[%emt 0:0:6]} 49. Rd3 {[%emt 0:0:1]} Qc5+ {[%emt 0:0:0]} 50. Ke2 {[%emt 0:0:11]} Qe5+ {[%emt 0:0:9]} 51. Re3 {[%emt 0:0:8]} Qb2+ {[%emt 0:0:5]} 52. Kf3 {[%emt 0:0:1]} Kf5 {[%emt 0:0:3]} 53. g3 {[%emt 0:1:16]
} Qb7+ {[%emt 0:0:2]} 54. Ke2 {[%emt 0:0:1]} Qg2 {[%emt 0:0:0]} 55. Rf3+ {[%emt 0:0:31]} Kg5 {[%emt 0:0:19]} 56. h4+ {[%emt 0:0:12]} Kg4 {[%emt 0:0:1]} 57. Rf4+ {[%emt 0:0:4]} Kh3 {[%emt 0:0:2]} 58. Ke3 {[%emt 0:0:30]
} Qd5 {[%emt 0:0:2]} 59. Rd4 {[%emt 0:0:17]} Qc5 {[%emt 0:0:0]} 60. Kd3 {[%emt 0:0:4]} Kg2 {[%emt 0:0:2]} 61. Rf4 {[%emt 0:0:1]} Qd5+ {[%emt 0:0:1]} 62. Ke3 {[%emt 0:0:2]} Qe5+ {[%emt 0:0:6]} 63. Kd3 {[%emt 0:0:2]
} g5 {[%emt 0:0:10]} 64. hxg5 {[%emt 0:0:1]} hxg5 {[%emt 0:0:0]} 65. Re4 {[%emt 0:0:11]} Qd5+ {[%emt 0:0:10]} 66. Ke3 {[%emt 0:0:19]} Qc5+ {[%emt 0:0:1]} 67. Rd4 {[%emt 0:0:7]} Qe5+ {[%emt 0:0:1]} 68. Re4 {[%emt 0:0:8]
} Qc3+ {[%emt 0:0:1]} 69. Ke2 {[%emt 0:0:5]} Qf3+ {[%emt 0:0:0]} 0-1

[Event "FIDE World Rapid-ch Open 2018"]
[White "Novikov, Stanislav"]
[Black "Yakubboev, Nodirbek"]
[Site "St. Petersburg"]
[Round "2.63"]
[Annotator "ChessBase"]
[Result "1/2-1/2"]
[Date "2018.12.26"]
[WhiteElo "2540"]
[BlackElo "2556"]
[PlyCount "125"]
[TimeControl "900+10"]

1. e4 {[%emt 0:0:0]} c5 {[%emt 0:0:0]} 2. Nf3 {[%emt 0:0:0]} d6 {[%emt 0:0:0]} 3. c3 {[%emt 0:0:11]} Nf6 {[%emt 0:0:5]} 4. Be2 {[%emt 0:0:2]} g6 {[%emt 0:0:28]} 5. 0-0 {[%emt 0:0:3]} Bg7 {[%emt 0:0:2]} 6. Bb5+ {[%emt 0:0:0]} Nc6 {[%emt 0:4:4]} 7. Re1 {[%emt 0:0:50]} a6 {[%emt 0:0:30]} 8. Bxc6+ {[%emt 0:3:3]} bxc6 {[%emt 0:0:2]} 9. d4 {[%emt 0:0:2]} cxd4 {[%emt 0:0:59]
} 10. cxd4 {[%emt 0:0:1]} d5 {[%emt 0:1:57]} 11. e5 {[%emt 0:0:0]} Ne4 {[%emt 0:0:0]} 12. Nbd2 {[%emt 0:0:43]} c5 {[%emt 0:2:32]} 13. Qc2 {[%emt 0:6:25]} Bf5 {[%emt 0:5:10]} 14. dxc5 {[%emt 0:0:25]} Rc8 {[%emt 0:0:12]
} 15. Nxe4 {[%emt 0:1:43]} dxe4 {[%emt 0:0:30]} 16. Nh4 {[%emt 0:0:41]
} Bxe5 {[%emt 0:0:27]} 17. Be3 {[%emt 0:0:7]} Qd3 {[%emt 0:0:0]} 18. Qxd3 {[%emt 0:2:51]} exd3 {[%emt 0:0:1]} 19. Nxf5 {[%emt 0:0:1]} gxf5 {[%emt 0:0:3]} 20. Rad1 {[%emt 0:0:1]} f4 {[%emt 0:0:10]} 21. Bc1 {[%emt 0:0:16]
} Rxc5 {[%emt 0:0:27]} 22. Rxd3 {[%emt 0:0:1]} f6 {[%emt 0:0:0]} 23. Bd2 {[%emt 0:0:43]} Kf7 {[%emt 0:0:28]} 24. Bc3 {[%emt 0:0:13]} Rhc8 {[%emt 0:0:18]} 25. Rc1 {[%emt 0:0:5]} Rb5 {[%emt 0:0:11]} 26. g3 {[%emt 0:0:18]
} fxg3 {[%emt 0:0:5]} 27. hxg3 {[%emt 0:0:1]} Bxc3 {[%emt 0:0:0]} 28. Rcxc3 {[%emt 0:0:5]} Rxc3 {[%emt 0:0:4]} 29. bxc3 {[%emt 0:0:0]} Rb2 {[%emt 0:0:3]} 30. a4 {[%emt 0:0:5]} Rb3 {[%emt 0:0:15]} 31. Rd7 {[%emt 0:0:35]} Ra3 {[%emt 0:0:25]} 32. Ra7 {[%emt 0:0:1]} Rxa4 {[%emt 0:0:0]} 33. Kg2 {[%emt 0:0:1]} Ke6 {[%emt 0:0:3]} 34. Kf3 {[%emt 0:0:9]} h5 {[%emt 0:0:3]} 35. Ke3 {[%emt 0:0:1]} Kd6 {[%emt 0:0:6]} 36. Ra8 {[%emt 0:0:2]
} Ra3 {[%emt 0:0:4]} 37. Kd3 {[%emt 0:0:4]} Ra2 {[%emt 0:0:0]} 38. Ke3 {[%emt 0:0:3]} a5 {[%emt 0:0:6]} 39. Ra6+ {[%emt 0:0:22]} Kd5 {[%emt 0:0:5]} 40. f4 {[%emt 0:0:17]} a4 41. Kd3 Rg2 {[%emt 0:1:11]} 42. Ra5+ {[%emt 0:0:1]} Ke6 {[%emt 0:0:3]} 43. Rxa4 {[%emt 0:0:12]} Rxg3+ {[%emt 0:0:1]
} 44. Kd4 {[%emt 0:0:9]} Rf3 {[%emt 0:0:23]} 45. Ke4 {[%emt 0:0:0]} Rxc3 {[%emt 0:0:3]} 46. f5+ {[%emt 0:0:0]} Kf7 {[%emt 0:0:4]} 47. Kf4 {[%emt 0:0:16]} h4 {[%emt 0:0:11]} 48. Ra1 {[%emt 0:0:1]} h3 {[%emt 0:0:0]} 49. Rh1 {[%emt 0:0:6]} Ke8 {[%emt 0:0:18]} 50. Kg4 {[%emt 0:0:2]} Rd3 {[%emt 0:0:10]} 51. Rh2 {[%emt 0:0:9]} Kd7 52. Re2 Rd5 {[%emt 0:0:23]} 53. Rf2 {[%emt 0:0:20]} Rd3 {[%emt 0:0:13]} 54. Re2 {[%emt 0:0:1]} Ke8 {[%emt 0:0:2]
} 55. Rh2 {[%emt 0:0:6]} Kd8 {[%emt 0:0:2]} 56. Re2 {[%emt 0:0:0]} Kd7 {[%emt 0:0:2]} 57. Ra2 {[%emt 0:0:12]} Kd6 {[%emt 0:0:9]} 58. Re2 {[%emt 0:0:8]} Rd5 {[%emt 0:0:36]} 59. Re6+ {[%emt 0:0:10]} Kd7 {[%emt 0:0:1]
} 60. Re2 {[%emt 0:0:1]} Rd3 {[%emt 0:0:4]} 61. Ra2 {[%emt 0:0:0]} Kd6 {[%emt 0:0:6]} 62. Re2 {[%emt 0:0:2]} Kd7 {[%emt 0:0:14]} 63. Ra2 1/2-1/2

[Event "FIDE World Rapid-ch Open 2018"]
[White "Rashkovsky, Nukhim N"]
[Black "Melkumyan, Hrant"]
[Site "St. Petersburg"]
[Round "2.65"]
[Annotator "ChessBase"]
[Result "0-1"]
[Date "2018.12.26"]
[WhiteElo "2482"]
[BlackElo "2670"]
[PlyCount "65"]
[TimeControl "900+10"]

1. Nc3 {[%emt 0:0:0]} c5 {[%emt 0:0:0]} 2. Nf3 {[%emt 0:0:0]} Nc6 {[%emt 0:0:2]
} 3. g3 {[%emt 0:0:3]} d5 {[%emt 0:0:16]} 4. Bg2 {[%emt 0:0:0]} d4 {[%emt 0:0:24]} 5. Nb1 {[%emt 0:0:14]} e5 {[%emt 0:0:6]} 6. d3 {[%emt 0:0:2]
} Bd6 {[%emt 0:0:39]} 7. Nbd2 {[%emt 0:0:21]} Nge7 {[%emt 0:0:0]} 8. 0-0 {[%emt 0:0:17]} 0-0 {[%emt 0:0:3]} 9. c3 {[%emt 0:0:14]} h6 {[%emt 0:0:19]
} 10. Ne4 {[%emt 0:0:14]} Be6 {[%emt 0:0:18]} 11. a3 {[%emt 0:0:0]} a5 {[%emt 0:0:15]} 12. a4 {[%emt 0:0:21]} Rc8 {[%emt 0:0:31]} 13. Nfd2 {[%emt 0:0:15]} b6 {[%emt 0:0:29]} 14. Nxd6 {[%emt 0:2:15]} Qxd6 {[%emt 0:0:2]
} 15. f4 {[%emt 0:2:12]} exf4 {[%emt 0:0:33]} 16. Ne4 {[%emt 0:0:0]} Qd8 {[%emt 0:1:1]} 17. Bxf4 {[%emt 0:0:8]} Nd5 {[%emt 0:0:14]} 18. c4 {[%emt 0:2:7]} Nxf4 {[%emt 0:0:33]} 19. gxf4 {[%emt 0:0:23]} Ne7 {[%emt 0:0:12]
} 20. Ng3 {[%emt 0:1:27]} Nf5 {[%emt 0:0:3]} 21. Qd2 {[%emt 0:0:0]} Qd7 {[%emt 0:1:33]} 22. Be4 {[%emt 0:0:23]} Rfe8 {[%emt 0:0:15]} 23. Rf2 {[%emt 0:0:44]} Nxg3 {[%emt 0:0:6]} 24. hxg3 {[%emt 0:0:1]} Bxc4 {[%emt 0:0:27]
} 25. f5 {[%emt 0:0:23]} Bd5 {[%emt 0:0:9]} 26. f6 {[%emt 0:0:0]} Bxe4 {[%emt 0:0:3]} 27. dxe4 {[%emt 0:0:28]} Rxe4 {[%emt 0:0:10]} 28. fxg7 Qh3 {[%emt 0:0:50]} 29. Raf1 {[%emt 0:0:46]} Rg4 {[%emt 0:0:38]} 30. Rg2 {[%emt 0:0:54]} Rxg3 {[%emt 0:0:6]} 31. Rff2 {[%emt 0:0:6]} Rxg2+ {[%emt 0:0:25]} 32. Rxg2 {[%emt 0:0:1]} Re8 {[%emt 0:0:24]} 33. Qc2 {[%emt 0:0:20]
} 0-1

[Event "FIDE World Rapid-ch Open 2018"]
[White "Sanikidze, Tornike"]
[Black "Savchenko, Boris"]
[Site "St. Petersburg"]
[Round "2.66"]
[Annotator "ChessBase"]
[Result "0-1"]
[Date "2018.12.26"]
[WhiteElo "2507"]
[BlackElo "2562"]
[PlyCount "70"]
[TimeControl "900+10"]

1. d4 {[%emt 0:0:0]} Nf6 {[%emt 0:0:0]} 2. c4 {[%emt 0:0:0]} g6 {[%emt 0:0:0]} 3. Nc3 {[%emt 0:0:3]} d5 {[%emt 0:0:0]} 4. cxd5 {[%emt 0:0:52]} Nxd5 {[%emt 0:0:0]} 5. Bd2 {[%emt 0:1:16]} Nb6 {[%emt 0:0:4]} 6. e3 {[%emt 0:0:9]
} Bg7 {[%emt 0:0:26]} 7. f4 {[%emt 0:0:5]} 0-0 {[%emt 0:0:7]
} 8. Nf3 {[%emt 0:0:34]} Bf5 {[%emt 0:0:35]} 9. h3 {[%emt 0:4:1]} Be6 {[%emt 0:2:0]
} 10. Ne4 {[%emt 0:0:59]} Nc4 {[%emt 0:1:40]} 11. Bc1 {[%emt 0:0:0]} Nd6 {[%emt 0:0:15]} 12. Nc3 {[%emt 0:1:33]} c5 {[%emt 0:0:54]} 13. d5 {[%emt 0:0:21]} Bf5 {[%emt 0:5:20]} 14. Bd3 {[%emt 0:0:3]} Bxd3 {[%emt 0:1:52]
} 15. Qxd3 {[%emt 0:0:2]} c4 {[%emt 0:0:29]} 16. Qc2 {[%emt 0:0:0]} Na6 {[%emt 0:0:39]} 17. Qe2 {[%emt 0:1:4]} Nb4 {[%emt 0:0:43]} 18. 0-0 {[%emt 0:0:3]} Bxc3 {[%emt 0:0:10]} 19. bxc3 {[%emt 0:0:9]} Nxd5 {[%emt 0:0:6]
} 20. Qc2 {[%emt 0:0:20]} Qa5 {[%emt 0:0:27]} 21. Bd2 {[%emt 0:0:0]} Nf6 {[%emt 0:0:16]} 22. Rab1 {[%emt 0:0:17]} Rfd8 {[%emt 0:1:15]} 23. Nd4 {[%emt 0:1:0]} Nfe4 {[%emt 0:0:29]} 24. Be1 {[%emt 0:0:10]} Rd7 {[%emt 0:0:25]
} 25. f5 {[%emt 0:2:35]} Qe5 {[%emt 0:0:22]} 26. g4 {[%emt 0:0:0]} Nc5 {[%emt 0:0:16]} 27. Qe2 {[%emt 0:0:15]} Nd3 {[%emt 0:0:8]} 28. Bh4 {[%emt 0:0:16]} Ne4 {[%emt 0:0:14]} 29. fxg6 {[%emt 0:0:9]} hxg6 {[%emt 0:0:7]
} 30. Rb5 {[%emt 0:0:8]} Rd5 {[%emt 0:0:23]} 31. Qf3 {[%emt 0:0:0]} f6 {[%emt 0:0:12]} 32. Rxd5 {[%emt 0:0:9]} Qxd5 {[%emt 0:0:2]} 33. Ne2 {[%emt 0:0:10]} Rd8 {[%emt 0:0:17]} 34. Rb1 {[%emt 0:0:4]} b6 {[%emt 0:0:0]} 35. Kg2 {[%emt 0:0:5]} Ne5 {[%emt 0:0:9]} 0-1

[Event "FIDE World Rapid-ch Open 2018"]
[White "Bocharov, Ivan"]
[Black "Belyakov, Bogdan"]
[Site "St. Petersburg"]
[Round "2.67"]
[Annotator "ChessBase"]
[Result "1-0"]
[Date "2018.12.26"]
[WhiteElo "2563"]
[BlackElo "2459"]
[PlyCount "103"]
[TimeControl "900+10"]

1. e4 {[%emt 0:2:18]} e5 {[%emt 0:0:0]} 2. Bc4 {[%emt 0:0:2]} Nc6 {[%emt 0:0:4]
} 3. Nf3 {[%emt 0:0:4]} Bc5 {[%emt 0:0:5]} 4. d3 {[%emt 0:0:0]} Nf6 {[%emt 0:0:4]} 5. 0-0 {[%emt 0:0:3]} 0-0 {[%emt 0:0:5]} 6. a4 {[%emt 0:0:16]
} a5 {[%emt 0:0:35]} 7. Re1 {[%emt 0:0:22]} h6 {[%emt 0:0:23]} 8. Nbd2 {[%emt 0:1:2]} d6 {[%emt 0:0:41]} 9. h3 {[%emt 0:0:22]} Be6 {[%emt 0:0:36]
} 10. c3 {[%emt 0:0:32]} Re8 {[%emt 0:0:38]} 11. Bb5 {[%emt 0:0:0]} Bd7 {[%emt 0:0:51]} 12. Nf1 {[%emt 0:0:21]} Ba7 {[%emt 0:0:17]} 13. Ng3 {[%emt 0:0:6]} Ne7 {[%emt 0:1:11]} 14. Nh4 {[%emt 0:0:38]} c6 {[%emt 0:0:0]} 15. Bc4 {[%emt 0:0:2]} d5 {[%emt 0:0:2]} 16. Ba2 {[%emt 0:0:14]} Ng6 {[%emt 0:0:24]} 17. Nhf5 {[%emt 0:1:8]} Be6 {[%emt 0:2:50]} 18. Qf3 {[%emt 0:0:8]
} dxe4 {[%emt 0:0:4]} 19. dxe4 {[%emt 0:0:10]} Bxa2 {[%emt 0:0:0]} 20. Rxa2 {[%emt 0:0:1]} Re6 {[%emt 0:0:19]} 21. b3 {[%emt 0:0:22]} Qf8 {[%emt 0:2:23]} 22. Rd1 {[%emt 0:2:22]} Rd8 {[%emt 0:0:4]} 23. Rxd8 {[%emt 0:1:35]
} Qxd8 {[%emt 0:0:2]} 24. Rd2 {[%emt 0:0:1]} Qf8 {[%emt 0:0:0]} 25. Rd3 {[%emt 0:0:56]} Bb6 {[%emt 0:1:7]} 26. Nh5 {[%emt 0:0:50]} Nxh5 {[%emt 0:0:49]} 27. Qxh5 {[%emt 0:0:2]} Nf4 {[%emt 0:1:9]} 28. Bxf4 {[%emt 0:0:2]
} exf4 {[%emt 0:0:1]} 29. Qf3 {[%emt 0:1:20]} g6 {[%emt 0:0:0]} 30. Nd4 {[%emt 0:0:0]} Bxd4 {[%emt 0:0:2]} 31. Rxd4 {[%emt 0:0:15]} Qa3 {[%emt 0:2:13]} 32. Qxf4 {[%emt 0:1:28]} Qxb3 {[%emt 0:1:18]} 33. Qxh6 {[%emt 0:0:27]
} Re8 {[%emt 0:0:1]} 34. Qe3 {[%emt 0:1:5]} b5 {[%emt 0:0:0]} 35. axb5 {[%emt 0:0:8]} cxb5 {[%emt 0:0:1]} 36. h4 {[%emt 0:0:15]} Qe6 {[%emt 0:0:38]} 37. h5 {[%emt 0:0:8]} gxh5 {[%emt 0:0:9]} 38. Qg5+ {[%emt 0:0:0]
} Qg6 {[%emt 0:0:11]} 39. Qxb5 {[%emt 0:0:10]} Rxe4 {[%emt 0:0:0]} 40. Qxa5 {[%emt 0:0:19]} Rxd4 41. cxd4 {[%emt 0:0:1]} Qg4 {[%emt 0:0:0]} 42. Qe5 {[%emt 0:0:8]} h4 {[%emt 0:0:5]} 43. Kh2 {[%emt 0:0:3]} Kh7 {[%emt 0:0:18]} 44. f3 {[%emt 0:0:3]} Qd7 {[%emt 0:0:13]} 45. Qh5+ {[%emt 0:0:4]
} Kg7 {[%emt 0:0:4]} 46. Qxh4 {[%emt 0:0:9]} Kf8 {[%emt 0:0:0]} 47. Qh8+ {[%emt 0:0:4]} Ke7 {[%emt 0:0:2]} 48. Qe5+ {[%emt 0:0:1]} Kf8 {[%emt 0:0:1]} 49. d5 {[%emt 0:0:3]} Qa4 {[%emt 0:0:2]} 50. Kg3 {[%emt 0:0:8]
} Qd7 {[%emt 0:0:9]} 51. d6 {[%emt 0:0:4]} Qd8 {[%emt 0:0:0]} 52. Qh8# {[%emt 0:0:1]} 1-0

[Event "FIDE World Rapid-ch Open 2018"]
[White "Najer, Evgeniy"]
[Black "Zakhartsov, Vladimir"]
[Site "St. Petersburg"]
[Round "2.68"]
[Annotator "ChessBase"]
[Result "1-0"]
[Date "2018.12.26"]
[WhiteElo "2670"]
[BlackElo "2486"]
[PlyCount "95"]
[TimeControl "900+10"]

1. e4 {[%emt 0:0:0]} c5 {[%emt 0:0:2]} 2. Nf3 {[%emt 0:0:0]} d6 {[%emt 0:0:0]} 3. d4 {[%emt 0:0:0]} Nf6 {[%emt 0:0:1]} 4. Nc3 {[%emt 0:0:0]} cxd4 {[%emt 0:0:1]} 5. Nxd4 {[%emt 0:0:0]} a6 {[%emt 0:0:1]} 6. Qd3 {[%emt 0:0:0]
} e5 {[%emt 0:0:30]} 7. Nf5 {[%emt 0:0:2]} Bxf5 {[%emt 0:0:0]} 8. exf5 {[%emt 0:0:2]} d5 {[%emt 0:0:7]} 9. Bg5 {[%emt 0:0:2]} d4 {[%emt 0:0:23]
} 10. Ne4 {[%emt 0:0:13]} Nbd7 {[%emt 0:1:19]} 11. Be2 {[%emt 0:3:33]
} Qa5+ {[%emt 0:0:11]} 12. Bd2 {[%emt 0:0:21]} Qb6 {[%emt 0:0:0]} 13. 0-0 {[%emt 0:0:29]} Nc5 {[%emt 0:0:15]} 14. Nxc5 {[%emt 0:0:7]} Bxc5 {[%emt 0:0:1]} 15. b4 {[%emt 0:0:46]} Be7 {[%emt 0:1:0]} 16. Bf3 {[%emt 0:0:24]
} 0-0 {[%emt 0:0:22]} 17. c4 {[%emt 0:0:11]} dxc3 {[%emt 0:0:0]} 18. Bxc3 {[%emt 0:0:3]} Rad8 {[%emt 0:0:11]} 19. Qe2 {[%emt 0:1:55]} Bd6 {[%emt 0:1:20]} 20. Rfe1 {[%emt 0:2:32]} Rc8 {[%emt 0:1:9]} 21. Bd2 {[%emt 0:1:16]
} h6 {[%emt 0:2:58]} 22. g3 {[%emt 0:0:25]} Rfd8 {[%emt 0:0:0]} 23. Be3 {[%emt 0:0:53]} Qc7 {[%emt 0:0:2]} 24. a3 {[%emt 0:0:28]} e4 {[%emt 0:1:5]
} 25. Bg2 {[%emt 0:0:2]} Qd7 {[%emt 0:0:38]} 26. g4 {[%emt 0:0:0]} Bb8 {[%emt 0:0:33]} 27. Rad1 {[%emt 0:1:56]} Qc7 {[%emt 0:0:6]} 28. Rxd8+ {[%emt 0:0:27]} Rxd8 {[%emt 0:0:3]} 29. h3 {[%emt 0:0:1]} Nd5 {[%emt 0:1:13]
} 30. Bc1 {[%emt 0:1:4]} Re8 {[%emt 0:1:16]} 31. Kf1 {[%emt 0:0:0]} Qh2 {[%emt 0:0:27]} 32. Qc4 {[%emt 0:0:13]} Nf6 {[%emt 0:0:12]} 33. a4 {[%emt 0:0:37]} Bf4 {[%emt 0:0:11]} 34. Bb2 {[%emt 0:0:11]} Be5 {[%emt 0:0:0]} 35. Ba3 {[%emt 0:0:15]} Bf4 {[%emt 0:0:10]} 36. b5 {[%emt 0:0:8]} axb5 {[%emt 0:0:24]} 37. Qxb5 {[%emt 0:0:6]} e3 {[%emt 0:0:14]} 38. Bc5 {[%emt 0:0:23]
} Re5 {[%emt 0:0:29]} 39. fxe3 {[%emt 0:0:10]} h5 {[%emt 0:0:0]} 40. Re2 {[%emt 0:0:24]} hxg4 {[%emt 0:0:6]} 41. Qc4 {[%emt 0:0:26]} Rxf5 {[%emt 0:0:7]} 42. Rf2 {[%emt 0:0:14]} Rxc5 {[%emt 0:0:17]} 43. Qxc5 {[%emt 0:0:5]
} Bg3 {[%emt 0:0:11]} 44. Qc8+ {[%emt 0:0:13]} Kh7 {[%emt 0:0:0]} 45. Qf5+ {[%emt 0:0:1]} Kh6 {[%emt 0:0:21]} 46. hxg4 {[%emt 0:0:11]} Nh7 {[%emt 0:0:0]} 47. Rb2 {[%emt 0:0:16]} Bd6 {[%emt 0:0:21]} 48. Qh5+ {[%emt 0:0:21]
} 1-0